bitfinex-derivatives/quotes_SOLF0:USTF0_20241218
["timestamp","ask_amount","ask_price","bid_price","bid_amount"]
[1734550664773,19.71689243,216.47,216.33,3.52]
[1734550664965,3.52,216.46,216.35,2.312]
[1734550665467,2.3114,216.42,216.37,2.3118]
[1734550665771,19.71689243,216.51,216.31,8.5809]
[1734550665962,19.71689243,216.51,216.32,5.49260256]
[1734550666165,19.71689243,216.47,216.32,5.49260256]
[1734550666967,2.3113,216.42,216.36,2.3119]
[1734550667168,2.3113,216.42,216.32,5.49260256]
[1734550667169,19.71689243,216.47,216.32,5.49260256]
[1734550667776,2.3113,216.42,216.37,2.3118]
[1734550668877,19.71689243,216.47,216.31,8.5809]
[1734550669075,19.71689243,216.43,216.31,5.7355]
[1734550669272,2.7696,216.42,216.31,2.993]
[1734550669472,2.7696,216.42,216.26,3.52]
[1734550669778,2.7696,216.42,216.28,25.30607066]
[1734550669977,19.71689243,216.44,216.28,25.30607066]
[1734550670171,2.3116,216.4,216.28,25.30607066]
[1734550670475,19.71689243,216.44,216.28,5.58917823]
[1734550670674,2.3119,216.37,216.32,2.3124]
[1734550671171,19.71689243,216.44,216.27,3.52]
[1734550671172,2.312,216.36,216.3,2.3125]
[1734550671376,2.312,216.36,216.27,3.52]
[1734550671568,19.71689243,216.4,216.27,9.14211475]
[1734550671871,2.3116,216.39,216.34,2.3121]
[1734550672071,19.71689243,216.44,216.28,19.71689243]
[1734550672274,2.3113,216.43,216.32,2.3123]
[1734550672473,19.71689243,216.44,216.28,19.71689243]
[1734550672980,2.3112,216.44,216.28,19.71689243]
[1734550673676,2.3109,216.46,216.28,19.71689243]
[1734550673873,2.3109,216.46,216.32,19.71689243]
[1734550674074,2.3109,216.46,216.33,2.7819]
[1734550674275,2.7696,216.47,216.34,3.52]
[1734550674678,2.311,216.45,216.4,2.3115]
[1734550674881,2.311,216.45,216.34,3.52]
[1734550675075,2.311,216.45,216.35,2.921]
[1734550675580,2.3109,216.46,216.36,2.9057]
[1734550675775,22.48689243,216.52,216.36,2.9057]
[1734550676281,2.3106,216.5,216.36,2.9057]
[1734550676584,2.3106,216.5,216.45,2.311]
[1734550677479,2.9127,216.55,216.41,3.52]
[1734550677682,6.37821141,216.58,216.41,3.52]
[1734550677883,2.3098,216.57,216.52,2.3102]
[1734550678285,2.3098,216.57,216.41,3.52]
[1734550678473,0.96154,216.58,216.44,19.71689243]
[1734550678873,0.96154,216.58,216.45,2.7874]
[1734550679078,0.96154,216.58,216.44,3.52]
[1734550679378,19.71689243,216.52,216.39,3.52]
[1734550680284,19.71689243,216.56,216.39,3.52]
[1734550680486,6.82874,216.58,216.4,19.71689243]
[1734550681182,19.71689243,216.52,216.39,5.58194121]
[1734550681484,19.71689243,216.48,216.3,19.71689243]
[1734550681685,19.71689243,216.44,216.3,2.7976]
[1734550681892,23.23689243,216.44,216.3,2.7976]
[1734550682883,25.22350384,216.44,216.3,6.3176]
[1734550683688,2.3118,216.38,216.3,6.3176]
[1734550684089,2.3116,216.39,216.32,2.3123]
[1734550684291,3.52,216.42,216.3,6.3176]
[1734550684788,3.52,216.42,216.31,2.3124]
[1734550685092,19.71689243,216.4,216.23,5.7628]
[1734550685292,2.3123,216.33,216.27,2.3128]
[1734550685490,19.71689243,216.4,216.23,11.44046088]
[1734550686288,2.3124,216.33,216.26,2.313]
[1734550686686,2.3122,216.34,216.27,2.3128]
[1734550687596,2.3123,216.33,216.27,2.3128]
[1734550687794,3.52,216.35,216.21,2.7792]
[1734550687993,2.3128,216.28,216.16,3.52]
[1734550688192,2.3128,216.28,216.21,2.3135]
[1734550688496,19.71689243,216.32,216.16,3.52]
[1734550688691,2.3128,216.28,216.16,3.52]
[1734550688892,19.71689243,216.32,216.19,2.3137]
[1734550689087,2.3128,216.28,216.18,5.51457831]
[1734550689295,19.71689243,216.28,216.18,5.51457831]
[1734550689500,23.23689243,216.28,216.14,2.3143]
[1734550689699,2.3133,216.24,216.14,2.3143]
[1734550689999,23.23689243,216.28,216.14,2.3143]
[1734550690393,19.71689243,216.24,216.1,2.9439]
[1734550690589,2.8744,216.23,216.1,2.9439]
[1734550690789,2.8744,216.23,216.1,5.2586]
[1734550691299,2.8744,216.23,216.11,2.3146]
[1734550691599,2.8744,216.23,216.1,2.9439]
[1734550691799,5.1878,216.23,216.15,2.3142]
[1734550691997,5.1878,216.23,216.1,2.9439]
[1734550692195,2.8744,216.23,216.1,2.9439]
[1734550692400,2.3132,216.25,216.19,2.3137]
[1734550692595,2.3132,216.25,216.1,2.9439]
[1734550692596,28.90510038,216.28,216.12,19.71689243]
[1734550692798,3.52,216.28,216.12,19.71689243]
[1734550692998,5.8329,216.28,216.12,19.71689243]
[1734550693197,19.71689243,216.32,216.16,19.71689243]
[1734550693398,2.8744,216.33,216.17,3.52]
[1734550693599,8.48760378,216.33,216.17,6.4363]
[1734550693798,2.3126,216.3,216.17,6.4363]
[1734550693995,8.48760378,216.33,216.17,6.4363]
[1734550694196,2.3125,216.31,216.25,2.3131]
[1734550694402,2.3125,216.31,216.17,6.4363]
[1734550694695,2.3128,216.29,216.21,2.3135]
[1734550694896,2.3128,216.29,216.17,3.52]
[1734550695101,2.8744,216.33,216.17,3.52]
[1734550695294,2.8744,216.33,216.23,2.3132]
[1734550695603,2.8744,216.33,216.2,19.71689243]
[1734550696104,2.8744,216.33,216.21,2.9458]
[1734550696397,25.62009243,216.4,216.21,8.56333718]
[1734550696603,2.9159,216.39,216.24,19.71689243]
[1734550696793,2.9159,216.39,216.25,3.52]
[1734550696995,5.42702747,216.45,216.28,19.71689243]
[1734550697202,1.28476,216.4,216.28,19.71689243]
[1734550698101,1.28476,216.4,216.32,19.71689243]
[1734550698297,1.28476,216.4,216.33,9.5075]
[1734550698699,1.28476,216.4,216.36,2.3119]
[1734550699302,1.28476,216.4,216.28,19.71689243]
[1734550699503,1.28476,216.4,216.3,3.52]
[1734550700103,1.28476,216.4,216.31,5.57863261]
[1734550701501,21.00165243,216.4,216.24,23.23689243]
[1734550701708,2.9873,216.39,216.23,5.8205]
[1734550702003,19.71689243,216.36,216.23,6.3411]
[1734550702207,19.71689243,216.36,216.22,2.916]
[1734550702401,2.3129,216.27,216.22,5.2294]
[1734550702600,19.71689243,216.32,216.17,6.3983]
[1734550702802,2.9066,216.31,216.17,6.3983]
[1734550703403,2.9066,216.31,216.17,3.52]
[1734550703804,2.9066,216.31,216.18,2.3138]
[1734550704006,2.9066,216.31,216.13,2.9906]
[1734550704209,2.3133,216.24,216.18,2.3139]
[1734550704407,2.3133,216.24,216.13,2.9906]
[1734550704607,2.3133,216.24,216.13,6.5106]
[1734550704804,2.3131,216.26,216.2,2.3136]
[1734550705411,5.42439424,216.32,216.14,5.66494757]
[1734550705604,6.5073,216.39,216.2,19.71689243]
[1734550705912,26.22419243,216.39,216.21,3.52]
[1734550706112,2.3124,216.33,216.28,2.3128]
[1734550706302,26.22419243,216.39,216.21,3.52]
[1734550706702,26.22419243,216.39,216.22,2.991]
[1734550707302,2.3121,216.35,216.29,2.3127]
[1734550707505,31.66693844,216.39,216.22,2.991]
[1734550707706,2.3122,216.34,216.27,2.3129]
[1734550707907,2.3122,216.34,216.22,2.991]
[1734550708109,31.66693844,216.39,216.22,2.991]
[1734550708620,2.3124,216.32,216.22,2.991]
[1734550709006,31.66693844,216.39,216.22,2.991]
[1734550709214,2.3123,216.33,216.28,2.3128]
[1734550709410,31.66693844,216.39,216.21,3.52]
[1734550710312,2.3125,216.31,216.25,2.313]
[1734550710512,19.71689243,216.35,216.18,2.7355]
[1734550710710,19.71689243,216.35,216.18,6.2555]
[1734550710907,2.3128,216.29,216.22,2.3134]
[1734550711214,2.3128,216.29,216.18,6.2555]
[1734550711913,2.3126,216.3,216.18,6.2555]
[1734550712112,2.9948,216.34,216.18,6.2555]
[1734550713114,2.3127,216.3,216.23,2.3132]
[1734550713422,2.9948,216.34,216.18,6.2555]
[1734550713615,5.7711,216.34,216.18,6.2555]
[1734550713917,0.72003407,216.33,216.21,2.3135]
[1734550714119,0.72003407,216.33,215.98,6.24049213]
[1734550714120,19.71689243,216.31,216.12,22.44209243]
[1734550714415,2.313,216.26,216.16,2.314]
[1734550714620,2.313,216.26,216.12,6.2452]
[1734550714621,2.968,216.25,216.12,6.2452]
[1734550715217,2.3133,216.24,216.12,25.96209243]
[1734550715420,2.968,216.25,216.12,25.96209243]
[1734550715918,5.2812,216.25,216.12,25.96209243]
[1734550716123,2.968,216.25,216.12,25.96209243]
[1734550717309,2.3136,216.21,216.16,2.3141]
[1734550717510,2.968,216.25,216.16,2.3141]
[1734550717717,19.71689243,216.23,216.06,3.52]
[1734550717909,2.3139,216.18,216.11,2.3145]
[1734550718215,19.71689243,216.23,216.09,5.49970038]
[1734550718417,2.3138,216.19,216.12,2.3144]
[1734550718613,19.71689243,216.23,216.09,5.49970038]
[1734550718916,19.71689243,216.23,216.07,3.52]
[1734550719119,19.71689243,216.23,216.06,6.2477]
[1734550719420,2.3143,216.15,216.09,2.3147]
[1734550719720,2.3143,216.15,216.06,6.2477]
[1734550719912,2.3143,216.15,216.1,2.3146]
[1734550720115,2.3143,216.15,216.08,5.58357622]
[1734550720315,2.3146,216.12,216.06,6.2477]
[1734550720710,2.3146,216.12,216.07,2.315]
[1734550721510,2.3144,216.14,216.09,2.3147]
[1734550721721,2.3144,216.14,216.06,6.2477]
[1734550722118,2.3142,216.16,216.11,2.3146]
[1734550722319,2.7703,216.21,216.06,6.2477]
[1734550723325,2.3143,216.14,216.09,2.3148]
[1734550723519,2.7703,216.21,216.09,2.3148]
[1734550723713,19.71689243,216.19,216.06,6.2477]
[1734550724116,2.3145,216.13,216.08,2.3149]
[1734550724317,19.71689243,216.19,216.08,2.3149]
[1734550725224,2.3145,216.13,216.08,2.3149]
[1734550725721,19.71689243,216.19,216.06,2.7277]
[1734550726020,19.71689243,216.19,213.96,1.68647842]
[1734550726021,19.71689243,216.11,216.0,5.54366753]
[1734550726321,2.3157,216.01,215.96,2.3162]
[1734550726529,2.3157,216.01,215.93,54.46006872]
[1734550726530,3.52,216.06,215.9,23.23689243]
[1734550726717,3.52,216.06,215.89,3.0109]
[1734550726923,2.3162,215.96,215.91,2.3167]
[1734550727127,19.71689243,216.03,215.85,25.48319243]
[1734550727633,2.3165,215.94,215.85,5.7663]
[1734550727822,23.23689243,215.99,215.85,5.7663]
[1734550728024,2.3166,215.93,215.87,2.3172]
[1734550728223,2.3166,215.93,215.85,5.7663]
[1734550728224,19.71689243,215.95,215.77,74.21595383]
[1734550728429,19.71689243,215.95,215.78,6.3875]
[1734550728629,2.3168,215.91,215.78,6.3875]
[1734550728930,2.3168,215.91,215.84,5.56869253]
[1734550729324,2.317,215.89,215.78,6.3875]
[1734550729533,2.317,215.89,215.78,2.8675]
[1734550730134,2.3169,215.91,215.78,2.8675]
[1734550730327,19.71689243,215.95,215.82,5.49222476]
[1734550730733,19.71689243,215.95,215.82,2.3177]
[1734550730935,19.71689243,215.95,215.78,2.8675]
[1734550731129,2.3168,215.91,215.83,2.3176]
[1734550731335,5.47219436,215.94,215.83,2.3176]
[1734550731637,5.47219436,215.94,215.83,2.3175]
[1734550731638,2.317,215.9,215.83,2.3175]
[1734550731832,5.47219436,215.94,215.83,2.3175]
[1734550732033,5.47219436,215.94,215.81,5.63577597]
[1734550732338,2.9444,215.98,215.81,25.3526684]
[1734550733437,2.3165,215.94,215.81,25.3526684]
[1734550733934,3.5,216.0,215.94,2.3164]
[1734550734134,3.5,216.0,215.85,23.21689243]
[1734550734333,19.71689243,216.03,215.86,2.7606]
[1734550734538,19.71689243,216.03,215.93,2.3165]
[1734550734539,2.3159,215.99,215.93,2.3165]
[1734550734737,19.71689243,216.03,215.86,2.7606]
[1734550734938,2.316,215.99,215.9,2.3168]
[1734550735236,2.316,215.99,215.86,2.7606]
[1734550735736,9.12055803,216.02,215.86,2.7606]
[1734550735939,9.12055803,216.02,215.87,2.7289]
[1734550737135,2.3161,215.98,215.92,2.3166]
[1734550737442,2.3161,215.98,215.87,2.7289]
[1734550738137,2.3161,215.98,215.92,2.3166]
[1734550738339,2.3161,215.98,215.87,2.7289]
[1734550738639,2.3161,215.98,215.92,2.3166]
[1734550738840,9.12055803,216.02,215.87,2.7289]
[1734550739030,19.71689243,215.99,215.81,5.63577597]
[1734550739235,9.12055803,216.02,215.84,2.3175]
[1734550739236,19.71689243,215.95,215.84,2.3175]
[1734550739438,2.317,215.89,215.84,2.3175]
[1734550739738,19.71689243,215.9,215.77,2.3182]
[1734550739942,2.3178,215.82,215.74,5.57872408]
[1734550740340,2.3178,215.82,215.76,2.3184]
[1734550740537,2.3177,215.83,215.73,5.7333]
[1734550740739,23.21689243,215.86,215.73,5.7333]
[1734550740945,23.21689243,215.86,215.75,2.3184]
[1734550742041,23.21689243,215.86,215.78,2.3182]
[1734550742339,9.11711363,215.86,215.73,5.7333]
[1734550742646,9.11711363,215.86,215.76,2.3184]
[1734550742846,9.11711363,215.86,215.73,5.7333]
[1734550743238,3.5,215.86,215.73,5.7333]
[1734550743542,19.71689243,215.9,215.73,5.7333]
[1734550743543,3.5,215.89,215.73,5.7333]
[1734550743746,3.5,215.89,215.74,2.9488]
[1734550743943,3.5,215.92,215.75,19.71689243]
[1734550744248,3.0038,215.94,215.79,19.71689243]
[1734550744444,19.71689243,215.97,215.79,23.21689243]
[1734550744748,11.31251086,216.0,215.83,19.71689243]
[1734550745041,5.1553,216.0,215.84,3.0042]
[1734550745347,5.1553,216.0,215.87,19.71689243]
[1734550745348,2.8394,216.0,215.87,19.71689243]
[1734550745536,1.72345,216.01,215.91,19.71689243]
[1734550746749,1.72345,216.01,215.99,2.3159]
[1734550747943,5.54405511,216.11,215.96,9.17969629]
[1734550748149,2.3148,216.1,216.03,2.3154]
[1734550748347,2.8394,216.14,215.96,9.17969629]
[1734550748544,2.3146,216.11,216.01,2.3157]
[1734550748751,5.53682833,216.12,215.96,5.67969629]
[1734550749050,2.3156,216.02,215.92,2.3166]
[1734550749245,19.71689243,216.02,215.89,3.5]
[1734550749549,2.3159,216.0,215.92,2.3167]
[1734550749851,19.71689243,216.02,215.85,5.6917]
[1734550750052,2.3165,215.94,215.86,2.3172]
[1734550750241,19.71689243,215.98,215.86,2.3172]
[1734550750739,19.71689243,215.98,215.85,2.8962]
[1734550751750,22.03299243,215.98,215.85,2.8962]
[1734550751946,19.71689243,215.98,215.9,2.3169]
[1734550752147,2.3162,215.97,215.85,2.8962]
[1734550752347,19.71689243,215.98,215.85,2.8962]
[1734550752643,22.03289243,215.98,215.85,2.8962]
[1734550752851,9.1227,216.01,215.85,2.8962]
[1734550752852,6.2597,216.01,215.85,2.8962]
[1734550753046,6.2597,216.01,215.94,2.3164]
[1734550753346,6.2597,216.01,215.85,2.8962]
[1734550753651,19.71689243,215.98,215.9,2.3169]
[1734550753950,2.3162,215.97,215.85,2.8962]
[1734550754248,19.71689243,215.98,215.85,2.8962]
[1734550754447,2.3161,215.97,215.85,2.8962]
[1734550754644,19.71689243,215.98,215.92,2.3166]
[1734550754840,19.71689243,215.98,215.85,2.8962]
[1734550755242,19.71689243,215.98,215.91,2.3168]
[1734550755446,19.71689243,215.98,215.85,2.8962]
[1734550755647,2.3161,215.97,215.92,2.3166]
[1734550755852,19.71689243,215.98,215.85,2.8962]
[1734550756351,2.7597,216.01,215.85,2.8962]
[1734550756548,19.71689243,216.07,215.88,19.71689243]
[1734550756853,2.3153,216.05,216.0,2.3157]
[1734550757051,19.71689243,216.07,215.92,3.5]
[1734550757447,2.3154,216.04,215.98,2.3159]
[1734550757648,5.57498901,216.06,215.92,3.5]
[1734550757649,19.71689243,216.07,215.92,3.5]
[1734550758347,2.3153,216.06,215.92,3.5]
[1734550758652,9.02715412,216.09,215.92,23.21689243]
[1734550758849,3.5,216.09,215.93,2.9514]
[1734550759151,19.71689243,216.11,215.93,2.9514]
[1734550759751,19.71689243,216.11,215.94,3.5]
[1734550759943,19.71689243,216.11,215.99,2.3159]
[1734550759944,2.3155,216.03,215.99,2.3159]
[1734550760148,19.71689243,216.07,215.91,3.5]
[1734550760549,2.3156,216.03,215.95,2.3163]
[1734550760749,2.3156,216.03,215.91,3.5]
[1734550761152,2.3156,216.03,215.98,2.316]
[1734550761453,2.3156,216.02,215.94,5.51984662]
[1734550761653,3.5,216.08,215.94,5.51984662]
[1734550762254,3.5,216.08,215.95,2.5626]
[1734550762646,2.3151,216.07,215.95,2.5626]
[1734550762854,3.5,216.08,215.95,2.5626]
[1734550763252,2.3158,216.01,215.96,2.3161]
[1734550763448,19.71689243,216.07,215.87,2.6941]
[1734550763651,19.71689243,216.03,215.87,6.1941]
[1734550763852,2.6275,216.02,215.87,2.6941]
[1734550764151,3.5,216.01,215.87,2.6941]
[1734550764751,3.5,216.01,215.88,5.46587572]
[1734550765145,2.3162,215.97,215.92,2.3166]
[1734550765352,2.3162,215.97,215.88,5.46587572]
[1734550765353,19.71689243,215.99,215.85,2.8962]
[1734550765755,2.3162,215.97,215.93,2.3165]
[1734550765948,3.5,216.01,215.87,5.66646137]
[1734550766353,5.8158,216.01,215.91,2.3168]
[1734550766555,3.5,216.01,215.89,3.5]
[1734550766960,2.3162,215.97,215.92,2.3166]
[1734550767652,3.5,216.01,215.89,3.5]
[1734550768058,5.153,216.02,215.89,3.5]
[1734550768758,2.3161,215.98,215.9,2.3168]
[1734550768957,5.153,216.02,215.87,5.6269719]
[1734550769356,5.153,216.02,215.9,2.3169]
[1734550769555,5.153,216.02,215.87,5.6269719]
[1734550769756,2.3166,215.93,215.89,2.3169]
[1734550769961,5.153,216.02,215.87,5.6269719]
[1734550771361,2.316,215.98,215.94,2.3164]
[1734550771553,5.153,216.02,215.87,5.6269719]
[1734550771959,2.6275,216.02,215.87,5.6269719]
[1734550772258,19.71689243,216.07,215.91,19.71689243]
[1734550772459,2.7314,216.12,215.95,19.71689243]
[1734550772658,0.71766998,216.11,215.96,2.5662]
[1734550772858,2.7314,216.12,215.96,5.1057]
[1734550773053,2.3149,216.09,216.0,2.3157]
[1734550773263,2.7314,216.12,215.99,3.5]
[1734550773556,2.3147,216.11,216.06,2.3151]
[1734550773764,2.7314,216.12,216.06,2.3151]
[1734550774158,2.7314,216.12,215.99,3.5]
[1734550774355,2.3149,216.09,216.05,2.3152]
[1734550774661,2.7314,216.12,215.99,3.5]
[1734550775055,2.315,216.08,216.04,2.3153]
[1734550775266,2.7314,216.12,215.99,3.5]
[1734550775462,2.7314,216.12,216.0,5.42513098]
[1734550776959,2.315,216.08,216.0,5.42513098]
[1734550777256,2.7314,216.12,216.0,5.42513098]
[1734550777455,0.71757297,216.11,216.02,2.3155]
[1734550777664,2.7314,216.12,216.02,2.3155]
[1734550777860,2.5667,216.14,215.99,8.93791693]
[1734550778058,0.71760991,216.13,215.99,8.93791693]
[1734550778259,5.50907348,216.17,216.03,19.71689243]
[1734550778462,7.82307348,216.17,216.13,2.3144]
[1734550778869,2.314,216.17,216.13,2.3144]
[1734550779070,2.3136,216.21,216.17,2.314]
[1734550779272,2.3136,216.21,216.07,22.45899243]
[1734550779672,5.67260296,216.22,216.07,2.7421]
[1734550780173,2.3139,216.19,216.13,2.3143]
[1734550780568,5.67260296,216.22,216.13,2.3143]
[1734550781173,2.3139,216.18,216.13,2.3143]
[1734550781975,5.67260296,216.22,216.07,2.7421]
[1734550782166,8.7632,216.25,216.07,2.7421]
[1734550782374,0.71802277,216.24,216.2,2.3136]
[1734550782569,0.71802277,216.24,216.07,25.05239243]
[1734550782570,8.7632,216.25,216.07,25.05239243]
[1734550782968,2.3134,216.23,216.07,25.05239243]
[1734550783279,8.7632,216.25,216.1,5.50318988]
[1734550783577,0.71799351,216.24,216.1,5.50318988]
[1734550784173,2.3137,216.21,216.15,2.3142]
[1734550784367,8.7632,216.25,216.1,5.50318988]
[1734550784679,0.71795112,216.24,216.1,5.50318988]
[1734550785480,2.3139,216.18,216.13,2.3144]
[1734550785775,3.5,216.18,216.07,2.7421]
[1734550785978,2.3144,216.14,216.09,2.3148]
[1734550786179,23.21689243,216.18,215.99,5.43791693]
[1734550786372,0.71769495,216.17,215.99,5.43791693]
[1734550786568,2.3147,216.11,216.05,2.3152]
[1734550786781,23.21689243,216.18,215.99,5.43791693]
[1734550786969,19.71689243,216.14,216.0,0.44428]
[1734550787176,7.6565,216.13,216.0,0.44428]
[1734550787778,2.315,216.08,216.03,2.3155]
[1734550788876,3.5,216.11,216.0,0.44428]
[1734550789077,2.71,216.13,216.0,0.44428]
[1734550789476,2.71,216.13,216.05,2.3152]
[1734550789776,2.71,216.13,216.0,0.44428]
[1734550790681,3.48,216.19,216.02,19.71689243]
[1734550790879,3.48,216.19,216.03,2.6636]
[1734550791376,22.36749243,216.22,216.03,2.6636]
[1734550791578,6.1306,216.22,216.06,19.71689243]
[1734550791786,2.3137,216.21,216.16,2.314]
[1734550792380,2.6506,216.22,216.16,2.314]
[1734550792571,2.3137,216.2,216.16,2.314]
[1734550792879,2.6506,216.22,216.12,2.3145]
[1734550793071,2.3136,216.21,216.08,3.48]
[1734550793772,2.3136,216.21,216.16,2.3141]
[1734550793973,2.6506,216.22,216.1,5.54815681]
[1734550794983,2.3136,216.21,216.1,5.54815681]
[1734550795185,2.6506,216.22,216.07,5.0365]
[1734550795186,22.36749243,216.22,216.07,5.0365]
[1734550797082,2.2802,216.21,216.07,5.0365]
[1734550797275,2.2802,216.21,216.1,2.3147]
[1734550797276,2.3143,216.15,216.1,2.3147]
[1734550797480,5.7775,216.2,216.1,2.3147]
[1734550797677,2.3144,216.14,216.09,2.3147]
[1734550798084,2.3144,216.14,216.07,5.0365]
[1734550798380,5.7775,216.2,216.02,3.48]
[1734550798685,0.71716904,216.19,216.02,3.48]
[1734550798983,19.71689243,216.18,216.01,4.8521]
[1734550799189,0.71716904,216.17,216.01,4.8521]
[1734550799486,19.71689243,216.18,216.01,4.8521]
[1734550799694,0.71732355,216.17,216.01,4.8521]
[1734550799892,19.71689243,216.14,216.0,0.44428]
[1734550800089,19.71689243,216.1,216.0,0.44428]
[1734550800391,19.71689243,216.06,215.91,4.7531]
[1734550800589,3.48,216.05,215.91,4.7531]
[1734550800990,2.3156,216.02,215.95,2.3163]
[1734550801189,3.48,216.05,215.91,10.29010074]
[1734550802095,2.3155,216.03,215.91,10.29010074]
[1734550802297,6.9182,216.09,215.93,19.71689243]
[1734550802596,19.71689243,216.19,216.01,19.71689243]
[1734550802795,5.49425884,216.25,216.09,19.71689243]
[1734550802997,5.49425884,216.25,216.1,3.48]
[1734550802998,0.71704855,216.24,216.1,3.48]
[1734550803188,20.43394098,216.24,216.1,3.48]
[1734550803390,0.71704855,216.23,216.05,3.48]
[1734550803686,19.71689243,216.2,216.07,5.52502165]
[1734550803890,23.19689243,216.2,216.07,5.52502165]
[1734550804189,3.48,216.2,216.07,5.52502165]
[1734550804386,5.49425884,216.25,216.07,5.52502165]
[1734550804591,3.48,216.24,216.07,5.52502165]
[1734550804786,25.49129243,216.3,216.2,2.3137]
[1734550804987,5.63817197,216.27,216.2,2.3137]
[1734550805188,3.48,216.33,216.16,19.71689243]
[1734550805389,0.71713138,216.32,216.16,19.71689243]
[1734550805595,5.42591399,216.31,216.16,19.71689243]
[1734550805896,2.3128,216.28,216.21,2.3135]
[1734550806094,19.71689243,216.3,216.14,7.2157]
[1734550806296,19.71689243,216.26,216.14,4.6881]
[1734550806495,2.3136,216.21,216.14,4.6881]
[1734550806696,3.48,216.25,216.14,2.3647]
[1734550807094,2.3132,216.24,216.18,2.3139]
[1734550807293,23.19689243,216.3,216.18,2.3139]
[1734550807496,0.71711706,216.29,216.14,2.3647]
[1734550807691,23.19689243,216.3,216.15,3.48]
[1734550807888,23.19689243,216.3,216.14,2.3647]
[1734550807889,0.71709993,216.29,216.14,2.3647]
[1734550809298,2.3128,216.29,216.22,2.3134]
[1734550809600,5.42591399,216.31,216.14,2.3647]
[1734550810295,5.8832,216.32,216.16,19.71689243]
[1734550810496,21.99589243,216.38,216.2,19.71689243]
[1734550810693,3.48,216.39,216.21,8.4897]
[1734550810896,19.71689243,216.38,216.21,5.0097]
[1734550811097,2.3124,216.32,216.25,2.313]
[1734550811295,19.71689243,216.34,216.21,2.4872]
[1734550811501,19.71689243,216.3,216.14,2.3647]
[1734550811701,2.3131,216.25,216.19,2.3138]
[1734550812000,5.8289,216.29,216.18,5.53243231]
[1734550812201,2.3133,216.24,216.17,2.3139]
[1734550812404,5.8289,216.29,216.14,2.3647]
[1734550812693,2.3134,216.23,216.14,2.3647]
[1734550812900,5.8289,216.29,216.16,5.52521416]
[1734550813600,5.8289,216.29,216.14,2.3647]
[1734550813796,11.3796553,216.29,216.15,5.60683475]
[1734550813997,5.8289,216.29,216.15,5.60683475]
[1734550814202,19.71689243,216.38,216.2,19.71689243]
[1734550814496,19.71689243,216.38,216.21,3.48]
[1734550814799,19.71689243,216.38,216.23,2.3133]
[1734550814800,2.3126,216.3,216.23,2.3133]
[1734550815000,19.71689243,216.34,216.21,3.48]
[1734550815199,19.71689243,216.34,216.16,23.19689243]
[1734550815496,19.71689243,216.3,216.16,3.48]
[1734550815697,23.19689243,216.3,216.16,3.48]
[1734550816101,23.19689243,216.3,216.15,5.60683475]
[1734550816298,23.19689243,216.3,216.21,2.3135]
[1734550816498,23.19689243,216.3,216.15,5.60683475]
[1734550816695,2.313,216.27,216.19,2.3137]
[1734550816901,23.19689243,216.3,216.15,5.60683475]
[1734550817296,2.3138,216.19,216.14,2.3647]
[1734550817497,3.48,216.23,216.1,2.4453]
[1734550817701,19.71689243,216.22,216.09,0.50128]
[1734550817901,19.71689243,216.23,216.09,0.50128]
[1734550818400,2.3133,216.24,216.18,2.3138]
[1734550818593,3.48,216.25,216.1,2.5287]
[1734550821105,3.48,216.25,216.11,4.7746]
[1734550821298,3.48,216.25,216.17,2.3139]
[1734550821299,2.3133,216.24,216.17,2.3139]
[1734550821898,3.48,216.25,216.12,3.48]
[1734550822495,2.3425,216.29,216.12,23.19689243]
[1734550823200,2.3732,216.33,216.16,19.71689243]
[1734550823602,19.71689243,216.37,216.2,19.71689243]
[1734550823797,23.19689243,216.37,216.21,3.48]
[1734550824003,2.3591,216.39,216.24,19.71689243]